{"text_format":"1","workbook":"xlsx","n_sheets":2,"sheets":["List Titles","Lists"],"not_rendered":{"charts":0,"images":0,"macros":1,"external_links":0,"defined_names":29,"comments":0,"pivot_tables":0},"unopened":[],"bounds":{"document_bytes":16777216,"sheet_cells":100000,"rows_first":2000,"rows_last":500,"rows_between":2000,"halvings":0,"cell_chars":16384,"cell_head_chars":4096},"cells_cut":0,"cells_raw":0,"read":"whole","date_system":"1900"}

{"sheet":"List Titles","index":0,"n_rows":49,"n_cols":5,"rows_kept":49,"cut":false,"hidden":false,"merged":[]}
[null,null,null,"Checklist Titles:"]
[null,"List #"]
[null,0,null,"PRE-FLIGHT","Edit"]
[]
[null,1,null,"BEFORE STARTING ENGINE","Edit"]
[]
[null,2,null,"ENGINE START","Edit"]
[]
[null,3,null,"PRE-TAXI & TAXI","Edit"]
[]
[null,4,null,"RUN-UP & PRE-TAKEOFF","Edit"]
[]
[null,5,null,"TAKEOFF & CLIMB","Edit"]
[]
[null,6,null,"CRUISE","Edit"]
[]
[null,7,null,"DESCENT","Edit"]
[]
[null,8,null,"PRE-LANDING","Edit"]
[]
[null,9,null,"AFTER LANDING","Edit"]
[]
[null,10,null,"SHUTDOWN & SECURING","Edit"]
[]
[null,11,null,"EMERGENCY:  ENGINE FAIL TAKEOFF","Edit"]
[]
[null,12,null,"EMERGENCY:  ENGINE FAIL IN-FLT","Edit"]
[]
[null,13,null,"EMERGENCY:  FIRE DURING START","Edit"]
[]
[null,14,null,"EMERGENCY:  FIRE IN-FLIGHT","Edit"]
[]
[null,15,null,"EMERGENCY:  FIRE ON GROUND","Edit"]
[]
[null,16,null,"EMERCENCY:  FIRE ELECTRICAL","Edit"]
[]
[null,17,null,"EMERGENCY:  LIGHT SIGNALS","Edit"]
[]
[null,18,null,"POH:  V-SPEEDS","Edit"]
[]
[null,19,null,"POH:  POWER AND PERFORMANCE","Edit"]
[]
[null,20,null,"MISC:  PHOENETIC ALPHABET","Edit"]
[]
[null,21,null,"MISC:  TRANSPONDER CODES","Edit"]
[]
[null,22,null,"[BLANK]","Edit"]
[]
[null,23,null,"CHECKLIST INFO","Edit"]

{"sheet":"Lists","index":1,"n_rows":54,"n_cols":48,"rows_kept":54,"cut":false,"hidden":false,"merged":[]}
["List",0,null,1,null,2,null,3,null,4,null,5,null,6,null,7,null,8,null,9,null,10,null,11,null,12,null,13,null,14,null,15,null,16,null,17,null,18,null,19,null,20,null,21,null,22,null,23]
["Titles:",{"$f":"'List Titles'!$D3","v":"PRE-FLIGHT"},null,{"$f":"'List Titles'!$D5","v":"BEFORE STARTING ENGINE"},null,{"$f":"'List Titles'!$D7","v":"ENGINE START"},null,{"$f":"'List Titles'!$D9","v":"PRE-TAXI & TAXI"},null,{"$f":"'List Titles'!$D11","v":"RUN-UP & PRE-TAKEOFF"},null,{"$f":"'List Titles'!$D13","v":"TAKEOFF & CLIMB"},null,{"$f":"'List Titles'!$D15","v":"CRUISE"},null,{"$f":"'List Titles'!$D17","v":"DESCENT"},null,{"$f":"'List Titles'!$D19","v":"PRE-LANDING"},null,{"$f":"'List Titles'!$D21","v":"AFTER LANDING"},null,{"$f":"'List Titles'!$D23","v":"SHUTDOWN & SECURING"},null,{"$f":"'List Titles'!$D25","v":"EMERGENCY:  ENGINE FAIL TAKEOFF"},null,{"$f":"'List Titles'!$D27","v":"EMERGENCY:  ENGINE FAIL IN-FLT"},null,{"$f":"'List Titles'!$D29","v":"EMERGENCY:  FIRE DURING START"},null,{"$f":"'List Titles'!$D31","v":"EMERGENCY:  FIRE IN-FLIGHT"},null,{"$f":"'List Titles'!$D33","v":"EMERGENCY:  FIRE ON GROUND"},null,{"$f":"'List Titles'!$D35","v":"EMERCENCY:  FIRE ELECTRICAL"},null,{"$f":"'List Titles'!$D37","v":"EMERGENCY:  LIGHT SIGNALS"},null,{"$f":"'List Titles'!$D39","v":"POH:  V-SPEEDS"},null,{"$f":"'List Titles'!$D41","v":"POH:  POWER AND PERFORMANCE"},null,{"$f":"'List Titles'!$D43","v":"MISC:  PHOENETIC ALPHABET"},null,{"$f":"'List Titles'!$D45","v":"MISC:  TRANSPONDER CODES"},null,{"$f":"'List Titles'!$D47","v":"[BLANK]"},null,{"$f":"'List Titles'!$D49","v":"CHECKLIST INFO"}]
["Item #"]
[1,null,null,null,null,"Master Switch   - ON",null,null,null,null,null,null,null,null,null,null,null,null,null,null,null,null,null,null,null,null,null,null,null,null,null,null,null,null,null,null,null,null,null,null,null,"A - Alpha",null,"VFR        - 1200 (USA)",null,null,null,"--"]
[{"$f":"A4+1","v":2},null,null,null,null,"Fuel Valve      - ON",null,null,null,null,null,null,null,null,null,null,null,null,null,null,null,null,null,null,null,null,null,null,null,null,null,null,null,null,null,null,null,null,null,null,null,"B - Bravo",null,"VFR        - 7000 (Europe)",null,null,null,"Last Saved"]
[{"$f":"A5+1","v":3},null,null,null,null,"Brakes          - SET",null,null,null,null,null,null,null,null,null,null,null,null,null,null,null,null,null,null,null,null,null,null,null,null,null,null,null,null,null,null,null,null,null,null,null,"C - Charlie",null,"Hijack     - 7500",null,null,null,{"$f":"TODAY()","v":"2016-12-12"}]
[4,null,null,null,null,"Propellor       - CLEAR",null,null,null,null,null,null,null,null,null,null,null,null,null,null,null,null,null,null,null,null,null,null,null,null,null,null,null,null,null,null,null,null,null,null,null,"D - Delta",null,"Radio Fail - 7600"]
[5,null,null,null,null,"Throttle        - FULL",null,null,null,null,null,null,null,null,null,null,null,null,null,null,null,null,null,null,null,null,null,null,null,null,null,null,null,null,null,null,null,null,null,null,null,"E - Echo",null,"Emergency  - 7700"]
[6,null,null,null,null,"Prop Pitch      - FULL IN",null,null,null,null,null,null,null,null,null,null,null,null,null,null,null,null,null,null,null,null,null,null,null,null,null,null,null,null,null,null,null,null,null,null,null,"F - Foxtrot"]
[7,null,null,null,null,"Mixture         - RICH",null,null,null,null,null,null,null,null,null,null,null,null,null,null,null,null,null,null,null,null,null,null,null,null,null,null,null,null,null,null,null,null,null,null,null,"G - Golf"]
[8,null,null,null,null,"Boost Pump      - ON 5-8 Seconds",null,null,null,null,null,null,null,null,null,null,null,null,null,null,null,null,null,null,null,null,null,null,null,null,null,null,null,null,null,null,null,null,null,null,null,"H - Hotel"]
[9,null,null,null,null,"Throttle        - 1/8\"",null,null,null,null,null,null,null,null,null,null,null,null,null,null,null,null,null,null,null,null,null,null,null,null,null,null,null,null,null,null,null,null,null,null,null,"I - India"]
[10,null,null,null,null,"Start           - ENGAGE",null,null,null,null,null,null,null,null,null,null,null,null,null,null,null,null,null,null,null,null,null,null,null,null,null,null,null,null,null,null,null,null,null,null,null,"J - Juliet"]
[11,null,null,null,null,"Magneto Switch  - BOTH",null,null,null,null,null,null,null,null,null,null,null,null,null,null,null,null,null,null,null,null,null,null,null,null,null,null,null,null,null,null,null,null,null,null,null,"K - Kilo"]
[12,null,null,null,null,"Oil Pressure    - GREEN < 30 Seconds",null,null,null,null,null,null,null,null,null,null,null,null,null,null,null,null,null,null,null,null,null,null,null,null,null,null,null,null,null,null,null,null,null,null,null,"L - Lima"]
[13,null,null,null,null,"Alternator      - ON",null,null,null,null,null,null,null,null,null,null,null,null,null,null,null,null,null,null,null,null,null,null,null,null,null,null,null,null,null,null,null,null,null,null,null,"M - Mike"]
[14,null,null,null,null,"Avionics Master - ON",null,null,null,null,null,null,null,null,null,null,null,null,null,null,null,null,null,null,null,null,null,null,null,null,null,null,null,null,null,null,null,null,null,null,null,"N - November"]
[15,null,null,null,null,null,null,null,null,null,null,null,null,null,null,null,null,null,null,null,null,null,null,null,null,null,null,null,null,null,null,null,null,null,null,null,null,null,null,null,null,"O - Oscar"]
[16,null,null,null,null,null,null,null,null,null,null,null,null,null,null,null,null,null,null,null,null,null,null,null,null,null,null,null,null,null,null,null,null,null,null,null,null,null,null,null,null,"P - Papa"]
[17,null,null,null,null,null,null,null,null,null,null,null,null,null,null,null,null,null,null,null,null,null,null,null,null,null,null,null,null,null,null,null,null,null,null,null,null,null,null,null,null,"Q - Quebec"]
[18,null,null,null,null,null,null,null,null,null,null,null,null,null,null,null,null,null,null,null,null,null,null,null,null,null,null,null,null,null,null,null,null,null,null,null,null,null,null,null,null,"R - Romeo"]
[19,null,null,null,null,null,null,null,null,null,null,null,null,null,null,null,null,null,null,null,null,null,null,null,null,null,null,null,null,null,null,null,null,null,null,null,null,null,null,null,null,"S - Sierra"]
[20,null,null,null,null,null,null,null,null,null,null,null,null,null,null,null,null,null,null,null,null,null,null,null,null,null,null,null,null,null,null,null,null,null,null,null,null,null,null,null,null,"T - Tango"]
[21,null,null,null,null,null,null,null,null,null,null,null,null,null,null,null,null,null,null,null,null,null,null,null,null,null,null,null,null,null,null,null,null,null,null,null,null,null,null,null,null,"U - Uniform"]
[22,null,null,null,null,null,null,null,null,null,null,null,null,null,null,null,null,null,null,null,null,null,null,null,null,null,null,null,null,null,null,null,null,null,null,null,null,null,null,null,null,"V - Victor"]
[23,null,null,null,null,null,null,null,null,null,null,null,null,null,null,null,null,null,null,null,null,null,null,null,null,null,null,null,null,null,null,null,null,null,null,null,null,null,null,null,null,"W - Whisky"]
[24,null,null,null,null,null,null,null,null,null,null,null,null,null,null,null,null,null,null,null,null,null,null,null,null,null,null,null,null,null,null,null,null,null,null,null,null,null,null,null,null,"X - X-Ray"]
[25,null,null,null,null,null,null,null,null,null,null,null,null,null,null,null,null,null,null,null,null,null,null,null,null,null,null,null,null,null,null,null,null,null,null,null,null,null,null,null,null,"Y - Yankee"]
[26,null,null,null,null,null,null,null,null,null,null,null,null,null,null,null,null,null,null,null,null,null,null,null,null,null,null,null,null,null,null,null,null,null,null,null,null,null,null,null,null,"Z - Zulu"]
[27]
[28]
[29]
[30]
[31]
[32]
[33]
[34]
[35]
[36]
[37]
[38]
[39]
[40]
[41]
[42]
[43]
[44]
[45]
[46]
[47]
[48]
[49]
[50]
[" "," ",null," ",null," ",null," ",null," ",null," ",null," ",null," ",null," ",null," ",null," ",null," ",null," ",null," ",null," ",null," ",null," ",null," ",null," ",null," ",null," ",null," ",null," ",null," "]